Cogmind - Beta 13 @@@ ROGUE MODE // 2024.04.02 @ 17:46:16 Player: lazy_engineer Result: Destroyed by G-47 Trooper with Particle Gun Performance ------------- Evolutions (1) 500 Regions Visited (6) 1200 Robots Destroyed (44) 220 Value Destroyed (1023) 1023 Prototype IDs (2) 40 Alien Tech Used (0) 0 Bonus (300) 300 TOTAL SCORE: 3283 Bonus ------- Aligned with FarCom 300 Cogmind --------- Core Integrity 0/400 Matter 290/300 Energy 96/100 System Corruption 0% Temperature Cool (9) Movement Core (700) Ox13 Location -8/Mines Parts ------- > --- POWER (1) -------- (None) > --- PROPULSION (3) --- (None) > --- UTILITY (3) ------ High-capacity Storage Unit Terrain Scan Processor > --- WEAPON (2) ------- Mining Claw > --- INVENTORY (20) --- Ion Engine Light Ion Engine Aluminum Leg Flying Fortress v7 High-capacity Storage Unit High-capacity Storage Unit Sensor Array Hacking Suite Field Recycling Unit (0) Shotgun Grenade Launcher Mining Laser Welding Torch Peak State ------------ > --- POWER ------------ Ion Engine > --- PROPULSION ------- Improved Treads Improved Treads Wheel > --- UTILITY ---------- Large Storage Unit Superbattery Sensor Array > --- WEAPON ----------- Heavy Battle Rifle Mining Claw > --- INVENTORY -------- Improved Treads Improved Treads Improved Treads Improved Treads Improved Treads Terrain Scanner Terrain Scan Processor Shield Generator Hacking Suite Field Recycling Unit Assault Rifle Shotgun Grenade Launcher Mining Laser Welding Torch [Rating: 25] Favorites ----------- Power Ion Engine Engine Ion Engine Power Core Light Nuclear Core Propulsion Improved Treads Treads Improved Treads Wheel Wheel Utility Small Storage Unit Device Shield Generator Storage Small Storage Unit Processor Signal Interpreter Weapon Heavy Battle Rifle Energy Gun EM Pulse Gun Ballistic Gun Heavy Battle Rifle Launcher Rocket Launcher Slashing Weapon Mining Claw Build | -11 -10 -10 -9 -9 -9 -8 ------- Run | Yrd Mat Min Mat Min Exi Min Slots Evolved 2 | . . . 2 . . . Power . | . . . . . . . Propulsion 1 | . . . 1 . . . Utility 1 | . . . 1 . . . Weapon . | . . . . . . . Parts Attached 42 | 7 1 5 12 . 9 8 Power 5 | 1 . 1 2 . . 1 Engine 4 | 1 . . 2 . . 1 Core 1 | . . 1 . . . . Reactor . | . . . . . . . Propulsion 12 | 2 1 . 4 . 4 1 Treads 9 | 1 1 . 3 . 3 1 Leg . | . . . . . . . Wheel 3 | 1 . . 1 . 1 . Hover . | . . . . . . . Flight . | . . . . . . . Utility 16 | 2 . 2 2 . 5 5 Device 5 | . . . 1 . 1 3 Storage 9 | 2 . 1 1 . 4 1 Processor 2 | . . 1 . . . 1 Hackware . | . . . . . . . Protection . | . . . . . . . Artifact . | . . . . . . . Weapon 9 | 2 . 2 4 . . 1 Energy Gun 1 | . . . 1 . . . Energy Cannon . | . . . . . . . Ballistic Gun 6 | 2 . 1 2 . . 1 Ballistic Cannon . | . . . . . . . Launcher 1 | . . 1 . . . . Special Weapon . | . . . . . . . Impact Weapon . | . . . . . . . Slashing Weapon 1 | . . . 1 . . . Piercing Weapon . | . . . . . . . Special Melee Weapon . | . . . . . . . Unidentified Prototypes 2 | . . . 1 . 1 . Parts Lost 12 | . . . 4 . . 8 Power 2 | . . . 1 . . 1 Propulsion 4 | . . . 1 . . 3 Utility 2 | . . . . . . 2 Weapon 4 | . . . 2 . . 2 Highest Loss Streak 5 | . . . 3 . . 5 To Critical Strikes . | . . . . . . . Average Slot Usage (%) 97 | . 100 99 96 100 99 94 Engine 8 | . 14 10 3 11 11 10 Core 2 | . . 3 5 . . . Treads 23 | . 14 14 23 22 22 32 Wheel 8 | . 14 14 9 11 10 . Device 5 | . . . 4 11 11 9 Storage 22 | . 28 27 22 22 21 19 Processor 2 | . . . 6 . . 1 Ballistic Gun 13 | . 28 23 9 11 11 9 Launcher 2 | . . 4 4 . . . Slashing Weapon 6 | . . . 5 11 11 11 Naked Turns . | . . . . . . . Heaviest Build 95 | 16 16 38 38 38 92 95 Greatest Support 69 | 10 10 10 69 10 69 69 Greatest Overweight (x) 9 | 1 1 3 3 3 9 1 Average Overweight (x) 2 | . 1 2 2 3 3 . Largest Inventory Capacity 20 | 8 8 15 15 15 20 20 Average Capacity 15 | 7 8 13 15 15 16 20 Most Carried 18 | 3 8 13 15 15 17 18 Average Carried 12 | . 4 9 13 14 15 15 Final Capacity 20 | 8 8 15 15 15 20 20 Final Carried 16 | . 8 12 15 15 16 16 Class Distribution -------------------- 96% | Mutant 3% | Assassin Dominant Class ---------------- Mutant | -10/Materials Mutant | -10/Mines Mutant | -9/Materials Mutant | -9/Mines Mutant | -9/Exiles Mutant | -8/Mines Resources | -11 -10 -10 -9 -9 -9 -8 ----------- Run | Yrd Mat Min Mat Min Exi Min Matter Collected 892 | 168 . 264 314 . . 146 Remotely . | . . . . . . . Salvage Created 1386 | 64 . 322 843 . . 157 Parts 98 | 1 . 17 71 . . 9 Haulers Intercepted . | . . . . . . . Recyclers Shooed . | . . . . . . . Parts Field Recycled . | . . . . . . . Retrieved Matter . | . . . . . . . Parts Self-Destructed . | . . . . . . . Prevented . | . . . . . . . Kills | -11 -10 -10 -9 -9 -9 -8 ------- Run | Yrd Mat Min Mat Min Exi Min Combat Hostiles Destroyed 30 | . . 6 17 . . 7 Melee 14 | . . . 7 . . 7 Guns 13 | . . 5 8 . . . AOE 3 | . . 1 2 . . . Classes Destroyed 8 | 1 . 3 4 . . . Worker 1 | . . . 1 . . . Builder 4 | . . 1 3 . . . Recycler 3 | 1 . 1 1 . . . Operator 4 | . . . 4 . . . Watcher 2 | . . . 2 . . . Swarmer 10 | . . . 4 . . 6 Grunt 14 | . . 4 9 . . 1 Sentry 6 | . . 2 4 . . . Best Kill Streak 12 | 1 . 4 12 . . 3 Combat Bots Only 3 | . . 2 3 . . 3 Max Kills in Single Turn 4 | 1 . 2 4 . . 1 Gunslinging . | . . . . . . . Exploded 2 | . . 1 2 . . . Melee 1 | . . . 1 . . 1 Uniques/NPCs Destroyed . | . . . . . . . Combat | -11 -10 -10 -9 -9 -9 -8 -------- Run | Yrd Mat Min Mat Min Exi Min Hostile Shots Fired 216 | . . 28 91 . . 97 Missed 51 | . . 11 24 . . 16 Damage Taken 2067 | . 21 279 757 6 . 1004 Core 506 | . 7 93 132 2 . 272 Absorbed by Shields 85 | . . . 57 3 . 25 Core Remaining (%) 80 | 100 . 60 . . . . Volleys Fired 61 | 3 . 17 41 . . . Largest 2 | 2 . 2 2 . . . Hottest 66 | 40 . 66 63 . . . Shots Fired 80 | 6 . 26 48 . . . Gun 69 | 6 . 22 41 . . . Cannon . | . . . . . . . Launcher 11 | . . 4 7 . . . Special . | . . . . . . . Kinetic 67 | 6 . 22 39 . . . Thermal . | . . . . . . . Explosive 11 | . . 4 7 . . . Electromagnetic 2 | . . . 2 . . . Robot Hit Streak 14 | 2 . 6 14 . . . Robot Miss Streak 7 | 3 . 2 7 . . . Penetration Max . | . . . . . . . Secondary Targets 1 | . . 1 . . . . Max Gunslinging Chain 1 | . . 1 . . . . Shots Hit Robots 105 | 3 . 18 56 . . 28 Core Hits 61 | 2 . 17 35 . . 7 Critical Kills . | . . . . . . . Critical Parts Destroyed 1 | . . . 1 . . . Critical Strikes 1 | . . . 1 . . . Destroy 1 | . . . 1 . . . Melee Attacks 88 | . . . 39 . . 49 Impact . | . . . . . . . Slashing 88 | . . . 39 . . 49 Piercing . | . . . . . . . Sneak Attacks 4 | . . . 4 . . . Combat Hostiles . | . . . . . . . Follow-up Attacks . | . . . . . . . Damage Inflicted 2633 | 31 . 501 1487 . . 614 Guns 740 | 31 . 267 442 . . . Cannons . | . . . . . . . Explosions 536 | . . 234 302 . . . Melee 1357 | . . . 743 . . 614 Ramming . | . . . . . . . Kinetic 729 | 31 . 267 431 . . . Thermal 145 | . . . 145 . . . Explosive 391 | . . 234 157 . . . Electromagnetic 11 | . . . 11 . . . Impact . | . . . . . . . Slashing 1357 | . . . 743 . . 614 Piercing . | . . . . . . . Highest Corruption . | . . . . . . . Average Corruption . | . . . . . . . Corruption Purged . | . . . . . . . Corruption Blocked . | . . . . . . . Overload Shots . | . . . . . . . Overflow Damage 153 | . . . 141 . . 12 Projectiles . | . . . . . . . Explosions 18 | . . . 18 . . . Melee 135 | . . . 123 . . 12 Knockbacks . | . . . . . . . Impact . | . . . . . . . Kinetic . | . . . . . . . Secondary . | . . . . . . . Self-Inflicted Damage 117 | . . 32 85 . . . Shots 5 | . . 2 3 . . . Rammed . | . . . . . . . Targets Rammed . | . . . . . . . Kicked . | . . . . . . . Crushed . | . . . . . . . Highest Temperature 27 | . . 27 12 . . . Average Temperature 12 | . . 13 9 . . . Received Heat Transfer 696 | . . 99 210 . . 387 Siege Activations . | . . . . . . . Robots Corrupted . | . . . . . . . Combat Hostiles . | . . . . . . . Parts Fried . | . . . . . . . Impact Corruptions . | . . . . . . . Robots Melted . | . . . . . . . Combat Hostiles . | . . . . . . . Parts Melted . | . . . . . . . Heat Transferred 150 | . . . 150 . . . Parts Sabotaged . | . . . . . . . Parts Stolen . | . . . . . . . Parts Stripped . | . . . . . . . Power Chain Reactions 1 | . . . 1 . . . Alert | -11 -10 -10 -9 -9 -9 -8 ------- Run | Yrd Mat Min Mat Min Exi Min Peak Influence 385 | 5 33 178 385 143 . 105 Initial 143 | . 3 12 10 143 . . Average 92 | 3 4 77 182 143 . 32 Maximum Alert Level 1 | . . . 1 . . . Low Security (%) 85 | 100 100 100 51 100 . 100 Level 1 14 | . . . 48 . . . Level 2 . | . . . . . . . Level 3 . | . . . . . . . Level 4 . | . . . . . . . Level 5 . | . . . . . . . High Security . | . . . . . . . Max Security . | . . . . . . . Squads Dispatched 6 | . 1 . 5 . . . Investigation 1 | . 1 . . . . . Extermination . | . . . . . . . Reinforcement 5 | . . . 5 . . . Assault . | . . . . . . . Garrison . | . . . . . . . Intercept . | . . . . . . . Searches Triggered . | . . . . . . . Construction Impeded 1 | . . . 1 . . . Haulers Reinforced . | . . . . . . . Active Scanning Responses . | . . . . . . . Cargo Convoy Interrupts . | . . . . . . . Stealth | -11 -10 -10 -9 -9 -9 -8 --------- Run | Yrd Mat Min Mat Min Exi Min Distress Signals 5 | . . . 5 . . . Communications Jammed . | . . . . . . . Distress Signals . | . . . . . . . Times Spotted 49 | . . 6 31 . . 12 Peak Tracking Total 5 | . . 4 5 . . 5 Tactical Retreats 5 | . . 1 4 . . . Traps | -11 -10 -10 -9 -9 -9 -8 ------- Run | Yrd Mat Min Mat Min Exi Min Traps Triggered 1 | . 1 . . . . . Indirectly . | . . . . . . . Trap Hack Attempts . | . . . . . . . Triggered . | . . . . . . . Disarmed . | . . . . . . . Reprogrammed . | . . . . . . . Reused . | . . . . . . . Traps Extracted . | . . . . . . . Installed 3 | . . 3 . . . . Triggered . | . . . . . . . Machines | -11 -10 -10 -9 -9 -9 -8 ---------- Run | Yrd Mat Min Mat Min Exi Min Machines Disabled 3 | . . 2 1 . . . Max in Single Turn 2 | . . 2 1 . . . Machines Repaired . | . . . . . . . Machines Dismantled . | . . . . . . . Machines Sabotaged . | . . . . . . . Overloaded Fab Kills . | . . . . . . . Hacking | -11 -10 -10 -9 -9 -9 -8 --------- Run | Yrd Mat Min Mat Min Exi Min Machines Accessed 5 | . 1 . 2 1 . 1 Terminals 3 | . . . 2 . . 1 Fabricators . | . . . . . . . Repair Stations . | . . . . . . . Recycling Units 1 | . 1 . . . . . Scanalyzers . | . . . . . . . Garrison Access . | . . . . . . . Total Hacks 13 | . 2 . 7 1 . 3 Successful 12 | . 2 . 6 1 . 3 Failed 1 | . . . 1 . . . Catastrophic . | . . . . . . . Database Lockouts . | . . . . . . . Manual 12 | . 1 . 7 . 1 3 Terminals 10 | . . . 7 . . 3 Fabricators . | . . . . . . . Repair Stations . | . . . . . . . Recycling Units 2 | . 2 . . . . . Scanalyzers . | . . . . . . . Garrison Access . | . . . . . . . Terminal Hacks 2 | . . . 1 1 . . Open Door 1 | . . . . 1 . . Zone Layout 1 | . . . 1 . . . Fabricator Hacks . | . . . . . . . Repair Station Hacks . | . . . . . . . Recycling Unit Hacks 1 | . 1 . . . . . Report Inventory 1 | . 1 . . . . . Scanalyzer . | . . . . . . . Garrison Access Hacks . | . . . . . . . Unauthorized Hacks 9 | . 1 . 5 . . 3 Terminals 8 | . . . 5 . . 3 Track 3 | . . . 2 . . 1 Botnet 3 | . . . 2 . . 1 Operators 2 | . . . 1 . . 1 Fabricators . | . . . . . . . Repair Stations . | . . . . . . . Recycling Units 1 | . 1 . . . . . Tunnel 1 | . 1 . . . . . Scanalyzers . | . . . . . . . Garrison Access . | . . . . . . . Data Cores Recovered . | . . . . . . . Used . | . . . . . . . Hacking Detections 3 | . . . 2 . . 1 Full Trace Events . | . . . . . . . Feedback Events . | . . . . . . . Feedback Blocked . | . . . . . . . Robot Schematics Acquired . | . . . . . . . Robots Built . | . . . . . . . Authchips . | . . . . . . . Time . | . . . . . . . Total Robot Build Rating . | . . . . . . . Part Schematics Acquired . | . . . . . . . Parts Built . | . . . . . . . Authchips . | . . . . . . . Time . | . . . . . . . Total Part Build Rating . | . . . . . . . Parts Repaired . | . . . . . . . Time . | . . . . . . . Parts Recycled . | . . . . . . . Recycled Matter . | . . . . . . . Retrieved Matter . | . . . . . . . Retrieved Components . | . . . . . . . Parts Scanalyzed . | . . . . . . . Part Schematics Acquired . | . . . . . . . Parts Damaged . | . . . . . . . Bothacking | -11 -10 -10 -9 -9 -9 -8 ------------ Run | Yrd Mat Min Mat Min Exi Min Used RIF Installer . | . . . . . . . Robots Hacked . | . . . . . . . Non-combat . | . . . . . . . Combat . | . . . . . . . Robot Hacks Applied . | . . . . . . . Relay Couplers Released . | . . . . . . . Fabnet Peak Effective % . | . . . . . . . Robots Rewired . | . . . . . . . Allies Hacked . | . . . . . . . Hacks Repelled . | . . . . . . . Allies | -11 -10 -10 -9 -9 -9 -8 -------- Run | Yrd Mat Min Mat Min Exi Min Total Allies . | . . . . . . . Largest Group . | . . . . . . . Highest-Rated Group . | . . . . . . . Highest-Rated Ally . | . . . . . . . Total Orders . | . . . . . . . Ally Attacks . | . . . . . . . Total Damage . | . . . . . . . Kills . | . . . . . . . Allies Corrupted . | . . . . . . . Allies Melted . | . . . . . . . Intel | -11 -10 -10 -9 -9 -9 -8 ------- Run | Yrd Mat Min Mat Min Exi Min Robot Analysis Total . | . . . . . . . Derelict Logs Recovered 3 | . . 1 . 2 . . Drone Launches . | . . . . . . . Drone Recoveries . | . . . . . . . Exploration | -11 -10 -10 -9 -9 -9 -8 ------------- Run | Yrd Mat Min Mat Min Exi Min Turns Passed 3679 | 73 169 830 969 212 371 1055 Spaces Moved 2148 | 63 165 639 521 134 252 374 Core 12 | 12 . . . . . . Treads 433 | . . . 52 . 7 374 Legs . | . . . . . . . Wheels 1703 | 51 165 639 469 134 245 . Hover . | . . . . . . . Flight . | . . . . . . . Fastest Speed 50 | 50 95 95 110 125 125 160 Average Speed 138 | 80 95 114 130 125 140 221 Slowest Speed 240 | 95 95 125 240 125 215 240 Overloaded Moves . | . . . . . . . Propulsion Burnouts . | . . . . . . . Robots Hopped . | . . . . . . . Cave-ins Triggered . | . . . . . . . Exploration Rate (%) 48 | 3 21 97 41 46 60 71 Regions Visited 6 Branch Regions 4 Pre-discovered Areas 1 | . 1 . . . . . Known Exits Taken 1 | . . 1 . . . . Unknown Exits Taken 5 | 1 1 . 1 1 1 . Scrap Searched 3 | . . 1 . . . 2 Spaces Dug 8 | . . . 8 . . . Terrain Destroyed 117 | . . 49 68 . . . Melee 1 | . . . 1 . . . Projectile 3 | . . 1 2 . . . AOE 113 | . . 48 65 . . . Terrain Rammed . | . . . . . . . Walls Destroyed . | . . . . . . . Machines Disabled . | . . . . . . . Actions | -11 -10 -10 -9 -9 -9 -8 --------- Run | Yrd Mat Min Mat Min Exi Min Total 2610 | 79 177 710 687 179 272 506 Wait 211 | . 2 37 60 44 . 68 Move 2142 | 62 164 638 520 133 251 374 Hop . | . . . . . . . Pick Up 39 | 7 9 6 11 1 3 2 Fast Attach 6 | . . 2 . . 4 . Attach 28 | 7 1 1 9 . 4 6 Detach 4 | . . . 1 . . 3 Swap 8 | . . 2 3 . 1 2 Drop 20 | . 1 4 3 1 9 2 Fire 61 | 3 . 17 41 . . . Melee 88 | . . . 39 . . 49 Ram . | . . . . . . . Kick . | . . . . . . . Crush . | . . . . . . . Escape Stasis . | . . . . . . . Rewire . | . . . . . . . Trap 3 | . . 3 . . . . Miscellaneous . | . . . . . . . Route ------- -11/Scrapyard -10/Materials -10/Mines (discovered 2 exits: *Mat x2) -9/Materials (discovered 2 exits: [*Mat] / *Min) -9/Mines (discovered 2 exits: [*Mat] / *Exi) -9/Exiles -8/Mines (discovered 2 exits: [*Mat x2]) History --------- Turn | Location | Event 32 | -11/Scrapyard | Discovered new exit (range 16) 74 | -11/Scrapyard | Entered Materials 205 | -10/Materials | Discovered new exit (range 11) 243 | -10/Materials | Entered Mines 303 | -10/Mines | Build established: Mutant 308 | -10/Mines | A weapon hastily lodged in a ceiling crevice suddenly fell to the ground 437 | -10/Mines | Learned Materials terminal intel 583 | -10/Mines | Found a hidden stash of uninstalled traps 719 | -10/Mines | Received a Rocket Launcher from a helpful Derelict 753 | -10/Mines | Discovered new exit (range 7) 903 | -10/Mines | Discovered new exit (range 6) 1072 | -10/Mines | Identified exit to Materials 1073 | -10/Mines | Entered Materials 1073 | -9/Materials | Evolved 2 slots: Propulsion x1, Utility x1 1074 | -9/Materials | Loaded intel: 12 terminal locations 1646 | -9/Materials | Lost 3 parts (1p1n1w) 1781 | -9/Materials | Discovered new exit (range 3) 1972 | -9/Materials | Discovered new exit (range 11) 2042 | -9/Materials | Entered Mines 2045 | -9/Mines | Learned Materials security intel 2050 | -9/Mines | YI-UF0 nonchalantly dropped a Grenade Launcher on the ground 2113 | -9/Mines | Discovered new exit (range 7) 2191 | -9/Mines | Met a Derelict who couldn't figure out how to use a Trap Extractor 2248 | -9/Mines | Deemed a non-threat by the Exiles lab entrance 2249 | -9/Mines | Discovered new exit (range 5) 2254 | -9/Mines | Entered Exiles 2286 | -9/Exiles | Met 8R-AWN 2308 | -9/Exiles | Met EX-HEX 2343 | -9/Exiles | Met EX-BIN 2357 | -9/Exiles | Aligned with FarCom system 2358 | -9/Exiles | Given EX-Vault access code 2388 | -9/Exiles | Opened EX-Vault 2394 | -9/Exiles | Found Prototype Storage 2394 | -9/Exiles | Identified Superbattery 2409 | -9/Exiles | Found Prototype Flight Unit 2449 | -9/Exiles | Warned to stay clear of 0b10 Research branches 2606 | -9/Exiles | Discovered new exit (range 10) 2625 | -9/Exiles | Left Exiles lab with Flying Fortress v7 2625 | -9/Exiles | Entered Mines 3116 | -8/Mines | Discovered new exit (range 4) 3602 | -8/Mines | Discovered new exit (range 14) 3628 | -8/Mines | Core integrity fell below 50% 3670 | -8/Mines | Core integrity fell below 20% 3680 | -8/Mines | Destroyed by G-47 Trooper with Particle Gun Last Messages --------------- Awaiting botnet instructions. >>Trojan(Operators) Trojan loaded successfully. Testing... Operator tracking enabled and active. >>Trojan(Track) Trojan loaded successfully. Testing... Tracking enabled and active. 03577_ T-07 Excavator is excavating. 03599_ Imp. Ion Engine destroyed. 03602_ EXIT=FOUND 03631_ Assault Rifle destroyed. 03639_ Imp. Treads destroyed. 03641_ G-50 Soldier destroyed. 03649_ Critical hit (Burn: +37). 03653_ Terrain Scanner destroyed. 03667_ Imp. Treads destroyed. 03674_ G-47 Trooper Aluminum Leg ripped off. 03675_ Critical hit (Burn: +37). Map ----- +----------------------------------------------------+ | | | ?????????????????????????????????????????????????? | | ?????????????????????????????????????????????????? | | ?????????????????????????????????????????????????? | | ?????????????????????????????????????????????????? | | ?????????????????????????????????????????????????? | | ??????????????????????#??????????????????????????? | | ?????????????????????????? ??????????????????????? | | ?????????????????????????????????????????????????? | | ??????????#????#?????#???? ??????????????????????? | | ?????????????????#?#?#???????????????????????????? | | ?????????????????#??#??? ????????????????????????? | | ??????????????#?????#??? ???? ??????????????????? | | ??????????????##???#??? ? ??????????????????? | | ??????????????# # ##???? ? ?### ????????????????? | | ??????????????? ###? ? ? ??####????????????????? | | ??????#?##?????# ???#?? ? ##?#?#???????????????? | | ?????????#?????# ?#### ??????###?#??????????????? | | ??????????###### #####? ?????##???###???????????? | | ?????????# # #?#?#?#?##????????????? | | ?????????# """ """ ## #?#??##????????????????? | | ?????????? """ """ #####?###??#?##????????????? | | ???????### """ " " #?####?#???#?#?????????????? | | ????????## ########?##?#?##???????????? | | ?????????# """ """ gg!#?###?###??##??????????? | | ?????????#? """ """ ###@#?#?#??#???????????????? | | ??????????? """ """ ###g#???#???#####??????????? | | ????????????? ###g##?????????????????????? | | ???????????< """ """ ###g#######?#???#??????????? | | ??????????? ??"" """ #?# ##?##?#??##?#??????? ??? | | ?????????# ? """ """ ### #?##?#??##??#??????? ??? | | ?????????? ?? ### ####?####?#?#??????? ?? | | ?????????????##?######### ###?####?###???????? ?? | | ???#???????????#??##?##?# ###?########?#?????# ?? | | ??? ##???????#?#####??## ######?###????????## ## | | ??## #????#??#??#?###?# ###?##??####?#???## | | ??# #??????#??#?##?### ####?###?#???#???# | | ???# #??????#?#?##?#?## #??####?#####?#??# #### | | ???## #????????#?#?##?## ######?## ##???# #?## | | ????# #????????###??#?## = ### #??## #?# | | ????# #??????#?####??#?###### ! #?#?# #?# | | ????# #????#####T#######??### #### ##?### ### | | ????# #????# ###?### #?## ##?### ## | | ????# #????# """#?#??# #??# ##### | | ????# ###??# """#????# #??## ## #### | | ????# #??# """#?#??# ###?# #??? | | ????# #??# #??### ##?# ##??? | | ????### #??##### ####????## ##?# ###???? | | ??????# #??????# #?????#??### #?### ##?????? | | ??????# #??????#[#??????#??## ##??# #??????? | +----------------------------------------------------+ Best States ------------- Heat Dissipation 28 Energy Generation 14 Energy Capacity 265 Matter Stores 300 Matter Capacity 300 Sight Range 16 Robot Scan Range 14 Terrain Scan Range 14 Terrain Scan Density 85 Evasion (%) 50 Recoil Reduction 3 Item Schematics ----------------- None Robot Schematics ------------------ None Fabricated ------------ Nothing Alien Tech Used ----------------- None Achievements -------------- root@ Challenges ------------ None Game ------ Seed AntigravLightningCarapace Manual? 0 Play Time 00:44:06 Cumulative 14.7 hours Start 2024.04.02 @ 15:23:22 End 2024.04.02 @ 17:46:16 Sessions 1 Manual Loads 0 Difficulty Rogue Special Mode None Game No. 28 Rogue 28 Adventurer 0 Explorer 0 Win Type - Total 0 Types 0/0/0/0/0/0/0/0/0 Lore% 15 Gallery% 17 Achievement% 18 Wizard Run 0 Options --------- Layout 0 ASCII 0 Keyboard 0 Movement Mouse Keybinds 0 Fullscreen 1 Font 24/Smallcaps Map View 76x50 Zoom Use 0% Tactical HUD 1 Map Filters NONE Filters NONE Steam 1 RUN: 3720a0e7-1fad-4925-a2a7-d3c76bf98082